Workbook

Sheet VLOOKUP
A1: Value | B1: Value 2
A2: value1 | B2: =VLOOKUP(A2,LookupValues!A:B,2,FALSE) -> 123
A3: value2 | B3: =VLOOKUP(A3,LookupValues!A:B,2,FALSE) -> 333
A4: value3 | B4: =VLOOKUP(A4,LookupValues!A:B,2,FALSE) -> 19
A5: value4 | B5: =VLOOKUP(A5,LookupValues!A:B,2,FALSE) -> 386
A6: value5 | B6: =VLOOKUP(A6,LookupValues!A:B,2,FALSE) -> 814
A7: value6 | B7: =VLOOKUP(A7,LookupValues!A:B,2,FALSE) -> 984
A8: value7 | B8: =VLOOKUP(A8,LookupValues!A:B,2,FALSE) -> 680
A9: value8 | B9: =VLOOKUP(A9,LookupValues!A:B,2,FALSE) -> 253
A10: value9 | B10: =VLOOKUP(A10,LookupValues!A:B,2,FALSE) -> 693
A11: value10 | B11: =VLOOKUP(A11,LookupValues!A:B,2,FALSE) -> 511
A12: value11 | B12: =VLOOKUP(A12,LookupValues!A:B,2,FALSE) -> 479
A13: value12 | B13: =VLOOKUP(A13,LookupValues!A:B,2,FALSE) -> 713
A14: value13 | B14: =VLOOKUP(A14,LookupValues!A:B,2,FALSE) -> 652
A15: value14 | B15: =VLOOKUP(A15,LookupValues!A:B,2,FALSE) -> 190
A16: value15 | B16: =VLOOKUP(A16,LookupValues!A:B,2,FALSE) -> 330
A17: value16 | B17: =VLOOKUP(A17,LookupValues!A:B,2,FALSE) -> 348
A18: value17 | B18: =VLOOKUP(A18,LookupValues!A:B,2,FALSE) -> 349
A19: value18 | B19: =VLOOKUP(A19,LookupValues!A:B,2,FALSE) -> 104
A20: value19 | B20: =VLOOKUP(A20,LookupValues!A:B,2,FALSE) -> 322
A21: value20 | B21: =VLOOKUP(A21,LookupValues!A:B,2,FALSE) -> 358
A22: value21 | B22: =VLOOKUP(A22,LookupValues!A:B,2,FALSE) -> 140
A23: value22 | B23: =VLOOKUP(A23,LookupValues!A:B,2,FALSE) -> 242
A24: value23 | B24: =VLOOKUP(A24,LookupValues!A:B,2,FALSE) -> 219
A25: value24 | B25: =VLOOKUP(A25,LookupValues!A:B,2,FALSE) -> 467
A26: value25 | B26: =VLOOKUP(A26,LookupValues!A:B,2,FALSE) -> 725
A27: value26 | B27: =VLOOKUP(A27,LookupValues!A:B,2,FALSE) -> 667
A28: value27 | B28: =VLOOKUP(A28,LookupValues!A:B,2,FALSE) -> 518
A29: value28 | B29: =VLOOKUP(A29,LookupValues!A:B,2,FALSE) -> 717
A30: value29 | B30: =VLOOKUP(A30,LookupValues!A:B,2,FALSE) -> 783
A31: value30 | B31: =VLOOKUP(A31,LookupValues!A:B,2,FALSE) -> 487
A32: value31 | B32: =VLOOKUP(A32,LookupValues!A:B,2,FALSE) -> 866
A33: value32 | B33: =VLOOKUP(A33,LookupValues!A:B,2,FALSE) -> 709
A34: value33 | B34: =VLOOKUP(A34,LookupValues!A:B,2,FALSE) -> 931
A35: value34 | B35: =VLOOKUP(A35,LookupValues!A:B,2,FALSE) -> 367
A36: value35 | B36: =VLOOKUP(A36,LookupValues!A:B,2,FALSE) -> 718
A37: value36 | B37: =VLOOKUP(A37,LookupValues!A:B,2,FALSE) -> 555
A38: value37 | B38: =VLOOKUP(A38,LookupValues!A:B,2,FALSE) -> 641
A39: value38 | B39: =VLOOKUP(A39,LookupValues!A:B,2,FALSE) -> 611
A40: value39 | B40: =VLOOKUP(A40,LookupValues!A:B,2,FALSE) -> 171
A41: value40 | B41: =VLOOKUP(A41,LookupValues!A:B,2,FALSE) -> 705
A42: value41 | B42: =VLOOKUP(A42,LookupValues!A:B,2,FALSE) -> 621
A43: value42 | B43: =VLOOKUP(A43,LookupValues!A:B,2,FALSE) -> 926
A44: value43 | B44: =VLOOKUP(A44,LookupValues!A:B,2,FALSE) -> 542
A45: value44 | B45: =VLOOKUP(A45,LookupValues!A:B,2,FALSE) -> 923
A46: value45 | B46: =VLOOKUP(A46,LookupValues!A:B,2,FALSE) -> 366
A47: value46 | B47: =VLOOKUP(A47,LookupValues!A:B,2,FALSE) -> 160
A48: value47 | B48: =VLOOKUP(A48,LookupValues!A:B,2,FALSE) -> 411
A49: value48 | B49: =VLOOKUP(A49,LookupValues!A:B,2,FALSE) -> 999
A50: value49 | B50: =VLOOKUP(A50,LookupValues!A:B,2,FALSE) -> 775
A51: value50 | B51: =VLOOKUP(A51,LookupValues!A:B,2,FALSE) -> 738
A52: value51 | B52: =VLOOKUP(A52,LookupValues!A:B,2,FALSE) -> 467
A53: value52 | B53: =VLOOKUP(A53,LookupValues!A:B,2,FALSE) -> 136
A54: value53 | B54: =VLOOKUP(A54,LookupValues!A:B,2,FALSE) -> 317
A55: value54 | B55: =VLOOKUP(A55,LookupValues!A:B,2,FALSE) -> 754
A56: value55 | B56: =VLOOKUP(A56,LookupValues!A:B,2,FALSE) -> 939
A57: value56 | B57: =VLOOKUP(A57,LookupValues!A:B,2,FALSE) -> 716
A58: value57 | B58: =VLOOKUP(A58,LookupValues!A:B,2,FALSE) -> 712
A59: value58 | B59: =VLOOKUP(A59,LookupValues!A:B,2,FALSE) -> 822
A60: value59 | B60: =VLOOKUP(A60,LookupValues!A:B,2,FALSE) -> 981
A61: value60 | B61: =VLOOKUP(A61,LookupValues!A:B,2,FALSE) -> 923
A62: value61 | B62: =VLOOKUP(A62,LookupValues!A:B,2,FALSE) -> 85
A63: value62 | B63: =VLOOKUP(A63,LookupValues!A:B,2,FALSE) -> 561
A64: value63 | B64: =VLOOKUP(A64,LookupValues!A:B,2,FALSE) -> 214
A65: value64 | B65: =VLOOKUP(A65,LookupValues!A:B,2,FALSE) -> 531
A66: value65 | B66: =VLOOKUP(A66,LookupValues!A:B,2,FALSE) -> 459
A67: value66 | B67: =VLOOKUP(A67,LookupValues!A:B,2,FALSE) -> 895
A68: value67 | B68: =VLOOKUP(A68,LookupValues!A:B,2,FALSE) -> 634
A69: value68 | B69: =VLOOKUP(A69,LookupValues!A:B,2,FALSE) -> 466
A70: value69 | B70: =VLOOKUP(A70,LookupValues!A:B,2,FALSE) -> 206
A71: value70 | B71: =VLOOKUP(A71,LookupValues!A:B,2,FALSE) -> 179
A72: value71 | B72: =VLOOKUP(A72,LookupValues!A:B,2,FALSE) -> 771
A73: value72 | B73: =VLOOKUP(A73,LookupValues!A:B,2,FALSE) -> 639
A74: value73 | B74: =VLOOKUP(A74,LookupValues!A:B,2,FALSE) -> 683
A75: value74 | B75: =VLOOKUP(A75,LookupValues!A:B,2,FALSE) -> 307
A76: value75 | B76: =VLOOKUP(A76,LookupValues!A:B,2,FALSE) -> 18
A77: value76 | B77: =VLOOKUP(A77,LookupValues!A:B,2,FALSE) -> 803
A78: value77 | B78: =VLOOKUP(A78,LookupValues!A:B,2,FALSE) -> 980
A79: value78 | B79: =VLOOKUP(A79,LookupValues!A:B,2,FALSE) -> 83
A80: value79 | B80: =VLOOKUP(A80,LookupValues!A:B,2,FALSE) -> 237
A81: value80 | B81: =VLOOKUP(A81,LookupValues!A:B,2,FALSE) -> 965
A82: value81 | B82: =VLOOKUP(A82,LookupValues!A:B,2,FALSE) -> 148
A83: value82 | B83: =VLOOKUP(A83,LookupValues!A:B,2,FALSE) -> 66
A84: value83 | B84: =VLOOKUP(A84,LookupValues!A:B,2,FALSE) -> 419
A85: value84 | B85: =VLOOKUP(A85,LookupValues!A:B,2,FALSE) -> 10
A86: value85 | B86: =VLOOKUP(A86,LookupValues!A:B,2,FALSE) -> 21
A87: value86 | B87: =VLOOKUP(A87,LookupValues!A:B,2,FALSE) -> 8
A88: value87 | B88: =VLOOKUP(A88,LookupValues!A:B,2,FALSE) -> 256
A89: value88 | B89: =VLOOKUP(A89,LookupValues!A:B,2,FALSE) -> 177
A90: value89 | B90: =VLOOKUP(A90,LookupValues!A:B,2,FALSE) -> 799
A91: value90 | B91: =VLOOKUP(A91,LookupValues!A:B,2,FALSE) -> 663
A92: value91 | B92: =VLOOKUP(A92,LookupValues!A:B,2,FALSE) -> 227
A93: value92 | B93: =VLOOKUP(A93,LookupValues!A:B,2,FALSE) -> 543
A94: value93 | B94: =VLOOKUP(A94,LookupValues!A:B,2,FALSE) -> 906
A95: value94 | B95: =VLOOKUP(A95,LookupValues!A:B,2,FALSE) -> 960
A96: value95 | B96: =VLOOKUP(A96,LookupValues!A:B,2,FALSE) -> 187
A97: value96 | B97: =VLOOKUP(A97,LookupValues!A:B,2,FALSE) -> 85
A98: value97 | B98: =VLOOKUP(A98,LookupValues!A:B,2,FALSE) -> 770
A99: value98 | B99: =VLOOKUP(A99,LookupValues!A:B,2,FALSE) -> 64
A100: value99 | B100: =VLOOKUP(A100,LookupValues!A:B,2,FALSE) -> 115
A101: value100 | B101: =VLOOKUP(A101,LookupValues!A:B,2,FALSE) -> 398
A102: value101 | B102: =VLOOKUP(A102,LookupValues!A:B,2,FALSE) -> 330
A103: value102 | B103: =VLOOKUP(A103,LookupValues!A:B,2,FALSE) -> 56
A104: value103 | B104: =VLOOKUP(A104,LookupValues!A:B,2,FALSE) -> 966
A105: value104 | B105: =VLOOKUP(A105,LookupValues!A:B,2,FALSE) -> 711
A106: value105 | B106: =VLOOKUP(A106,LookupValues!A:B,2,FALSE) -> 180
A107: value106 | B107: =VLOOKUP(A107,LookupValues!A:B,2,FALSE) -> 689
A108: value107 | B108: =VLOOKUP(A108,LookupValues!A:B,2,FALSE) -> 338
A109: value108 | B109: =VLOOKUP(A109,LookupValues!A:B,2,FALSE) -> 557
A110: value109 | B110: =VLOOKUP(A110,LookupValues!A:B,2,FALSE) -> 553
A111: value110 | B111: =VLOOKUP(A111,LookupValues!A:B,2,FALSE) -> 909
A112: value111 | B112: =VLOOKUP(A112,LookupValues!A:B,2,FALSE) -> 104
A113: value112 | B113: =VLOOKUP(A113,LookupValues!A:B,2,FALSE) -> 951
A114: value113 | B114: =VLOOKUP(A114,LookupValues!A:B,2,FALSE) -> 812
A115: value114 | B115: =VLOOKUP(A115,LookupValues!A:B,2,FALSE) -> 507
A116: value115 | B116: =VLOOKUP(A116,LookupValues!A:B,2,FALSE) -> 504
A117: value116 | B117: =VLOOKUP(A117,LookupValues!A:B,2,FALSE) -> 516
A118: value117 | B118: =VLOOKUP(A118,LookupValues!A:B,2,FALSE) -> 850
A119: value118 | B119: =VLOOKUP(A119,LookupValues!A:B,2,FALSE) -> 756
A120: value119 | B120: =VLOOKUP(A120,LookupValues!A:B,2,FALSE) -> 769
A121: value120 | B121: =VLOOKUP(A121,LookupValues!A:B,2,FALSE) -> 544
A122: value121 | B122: =VLOOKUP(A122,LookupValues!A:B,2,FALSE) -> 394
A123: value122 | B123: =VLOOKUP(A123,LookupValues!A:B,2,FALSE) -> 114
A124: value123 | B124: =VLOOKUP(A124,LookupValues!A:B,2,FALSE) -> 620
A125: value124 | B125: =VLOOKUP(A125,LookupValues!A:B,2,FALSE) -> 268
A126: value125 | B126: =VLOOKUP(A126,LookupValues!A:B,2,FALSE) -> 23
A127: value126 | B127: =VLOOKUP(A127,LookupValues!A:B,2,FALSE) -> 245
A128: value127 | B128: =VLOOKUP(A128,LookupValues!A:B,2,FALSE) -> 770
A129: value128 | B129: =VLOOKUP(A129,LookupValues!A:B,2,FALSE) -> 285
A130: value129 | B130: =VLOOKUP(A130,LookupValues!A:B,2,FALSE) -> 154
A131: value130 | B131: =VLOOKUP(A131,LookupValues!A:B,2,FALSE) -> 619
A132: value131 | B132: =VLOOKUP(A132,LookupValues!A:B,2,FALSE) -> 901
A133: value132 | B133: =VLOOKUP(A133,LookupValues!A:B,2,FALSE) -> 689
A134: value133 | B134: =VLOOKUP(A134,LookupValues!A:B,2,FALSE) -> 933
A135: value134 | B135: =VLOOKUP(A135,LookupValues!A:B,2,FALSE) -> 39
A136: value135 | B136: =VLOOKUP(A136,LookupValues!A:B,2,FALSE) -> 103
A137: value136 | B137: =VLOOKUP(A137,LookupValues!A:B,2,FALSE) -> 571
A138: value137 | B138: =VLOOKUP(A138,LookupValues!A:B,2,FALSE) -> 604
A139: value138 | B139: =VLOOKUP(A139,LookupValues!A:B,2,FALSE) -> 227
A140: value139 | B140: =VLOOKUP(A140,LookupValues!A:B,2,FALSE) -> 3
A141: value140 | B141: =VLOOKUP(A141,LookupValues!A:B,2,FALSE) -> 981
A142: value141 | B142: =VLOOKUP(A142,LookupValues!A:B,2,FALSE) -> 527
A143: value142 | B143: =VLOOKUP(A143,LookupValues!A:B,2,FALSE) -> 114
A144: value143 | B144: =VLOOKUP(A144,LookupValues!A:B,2,FALSE) -> 550
A145: value144 | B145: =VLOOKUP(A145,LookupValues!A:B,2,FALSE) -> 675
A146: value145 | B146: =VLOOKUP(A146,LookupValues!A:B,2,FALSE) -> 228
A147: value146 | B147: =VLOOKUP(A147,LookupValues!A:B,2,FALSE) -> 335
A148: value147 | B148: =VLOOKUP(A148,LookupValues!A:B,2,FALSE) -> 103
A149: value148 | B149: =VLOOKUP(A149,LookupValues!A:B,2,FALSE) -> 822
A150: value149 | B150: =VLOOKUP(A150,LookupValues!A:B,2,FALSE) -> 808
A151: value150 | B151: =VLOOKUP(A151,LookupValues!A:B,2,FALSE) -> 269
A152: value151 | B152: =VLOOKUP(A152,LookupValues!A:B,2,FALSE) -> 523
A153: value152 | B153: =VLOOKUP(A153,LookupValues!A:B,2,FALSE) -> 8
A154: value153 | B154: =VLOOKUP(A154,LookupValues!A:B,2,FALSE) -> 750
A155: value154 | B155: =VLOOKUP(A155,LookupValues!A:B,2,FALSE) -> 498
A156: value155 | B156: =VLOOKUP(A156,LookupValues!A:B,2,FALSE) -> 762
A157: value156 | B157: =VLOOKUP(A157,LookupValues!A:B,2,FALSE) -> 395
A158: value157 | B158: =VLOOKUP(A158,LookupValues!A:B,2,FALSE) -> 582
A159: value158 | B159: =VLOOKUP(A159,LookupValues!A:B,2,FALSE) -> 856
A160: value159 | B160: =VLOOKUP(A160,LookupValues!A:B,2,FALSE) -> 863
A161: value160 | B161: =VLOOKUP(A161,LookupValues!A:B,2,FALSE) -> 170
A162: value161 | B162: =VLOOKUP(A162,LookupValues!A:B,2,FALSE) -> 270
A163: value162 | B163: =VLOOKUP(A163,LookupValues!A:B,2,FALSE) -> 240
A164: value163 | B164: =VLOOKUP(A164,LookupValues!A:B,2,FALSE) -> 344
A165: value164 | B165: =VLOOKUP(A165,LookupValues!A:B,2,FALSE) -> 406
A166: value165 | B166: =VLOOKUP(A166,LookupValues!A:B,2,FALSE) -> 661
A167: value166 | B167: =VLOOKUP(A167,LookupValues!A:B,2,FALSE) -> 811
A168: value167 | B168: =VLOOKUP(A168,LookupValues!A:B,2,FALSE) -> 3
A169: value168 | B169: =VLOOKUP(A169,LookupValues!A:B,2,FALSE) -> 587
A170: value169 | B170: =VLOOKUP(A170,LookupValues!A:B,2,FALSE) -> 172
A171: value170 | B171: =VLOOKUP(A171,LookupValues!A:B,2,FALSE) -> 150
A172: value171 | B172: =VLOOKUP(A172,LookupValues!A:B,2,FALSE) -> 100
A173: value172 | B173: =VLOOKUP(A173,LookupValues!A:B,2,FALSE) -> 95
A174: value173 | B174: =VLOOKUP(A174,LookupValues!A:B,2,FALSE) -> 546
A175: value174 | B175: =VLOOKUP(A175,LookupValues!A:B,2,FALSE) -> 929
A176: value175 | B176: =VLOOKUP(A176,LookupValues!A:B,2,FALSE) -> 206
A177: value176 | B177: =VLOOKUP(A177,LookupValues!A:B,2,FALSE) -> 565
A178: value177 | B178: =VLOOKUP(A178,LookupValues!A:B,2,FALSE) -> 246
A179: value178 | B179: =VLOOKUP(A179,LookupValues!A:B,2,FALSE) -> 204
A180: value179 | B180: =VLOOKUP(A180,LookupValues!A:B,2,FALSE) -> 900
A181: value180 | B181: =VLOOKUP(A181,LookupValues!A:B,2,FALSE) -> 801
A182: value181 | B182: =VLOOKUP(A182,LookupValues!A:B,2,FALSE) -> 233
A183: value182 | B183: =VLOOKUP(A183,LookupValues!A:B,2,FALSE) -> 419
A184: value183 | B184: =VLOOKUP(A184,LookupValues!A:B,2,FALSE) -> 493
A185: value184 | B185: =VLOOKUP(A185,LookupValues!A:B,2,FALSE) -> 519
A186: value185 | B186: =VLOOKUP(A186,LookupValues!A:B,2,FALSE) -> 747
A187: value186 | B187: =VLOOKUP(A187,LookupValues!A:B,2,FALSE) -> 247
A188: value187 | B188: =VLOOKUP(A188,LookupValues!A:B,2,FALSE) -> 607
A189: value188 | B189: =VLOOKUP(A189,LookupValues!A:B,2,FALSE) -> 158
A190: value189 | B190: =VLOOKUP(A190,LookupValues!A:B,2,FALSE) -> 830
A191: value190 | B191: =VLOOKUP(A191,LookupValues!A:B,2,FALSE) -> 436
A192: value191 | B192: =VLOOKUP(A192,LookupValues!A:B,2,FALSE) -> 573
A193: value192 | B193: =VLOOKUP(A193,LookupValues!A:B,2,FALSE) -> 375
A194: value193 | B194: =VLOOKUP(A194,LookupValues!A:B,2,FALSE) -> 39
A195: value194 | B195: =VLOOKUP(A195,LookupValues!A:B,2,FALSE) -> 729
A196: value195 | B196: =VLOOKUP(A196,LookupValues!A:B,2,FALSE) -> 305
A197: value196 | B197: =VLOOKUP(A197,LookupValues!A:B,2,FALSE) -> 146
A198: value197 | B198: =VLOOKUP(A198,LookupValues!A:B,2,FALSE) -> 198
A199: value198 | B199: =VLOOKUP(A199,LookupValues!A:B,2,FALSE) -> 463
A200: value199 | B200: =VLOOKUP(A200,LookupValues!A:B,2,FALSE) -> 914
... 4300 more rows

Sheet LookupValues
A1: Lookup Column | B1: Lookup Value
A2: value1 | B2: 123
A3: value2 | B3: 333
A4: value3 | B4: 19
A5: value4 | B5: 386
A6: value5 | B6: 814
A7: value6 | B7: 984
A8: value7 | B8: 680
A9: value8 | B9: 253
A10: value9 | B10: 693
A11: value10 | B11: 511
A12: value11 | B12: 479
A13: value12 | B13: 713
A14: value13 | B14: 652
A15: value14 | B15: 190
A16: value15 | B16: 330
A17: value16 | B17: 348
A18: value17 | B18: 349
A19: value18 | B19: 104
A20: value19 | B20: 322
A21: value20 | B21: 358
A22: value21 | B22: 140
A23: value22 | B23: 242
A24: value23 | B24: 219
A25: value24 | B25: 467
A26: value25 | B26: 725
A27: value26 | B27: 667
A28: value27 | B28: 518
A29: value28 | B29: 717
A30: value29 | B30: 783
A31: value30 | B31: 487
A32: value31 | B32: 866
A33: value32 | B33: 709
A34: value33 | B34: 931
A35: value34 | B35: 367
A36: value35 | B36: 718
A37: value36 | B37: 555
A38: value37 | B38: 641
A39: value38 | B39: 611
A40: value39 | B40: 171
A41: value40 | B41: 705
A42: value41 | B42: 621
A43: value42 | B43: 926
A44: value43 | B44: 542
A45: value44 | B45: 923
A46: value45 | B46: 366
A47: value46 | B47: 160
A48: value47 | B48: 411
A49: value48 | B49: 999
A50: value49 | B50: 775
A51: value50 | B51: 738
A52: value51 | B52: 467
A53: value52 | B53: 136
A54: value53 | B54: 317
A55: value54 | B55: 754
A56: value55 | B56: 939
A57: value56 | B57: 716
A58: value57 | B58: 712
A59: value58 | B59: 822
A60: value59 | B60: 981
A61: value60 | B61: 923
A62: value61 | B62: 85
A63: value62 | B63: 561
A64: value63 | B64: 214
A65: value64 | B65: 531
A66: value65 | B66: 459
A67: value66 | B67: 895
A68: value67 | B68: 634
A69: value68 | B69: 466
A70: value69 | B70: 206
A71: value70 | B71: 179
A72: value71 | B72: 771
A73: value72 | B73: 639
A74: value73 | B74: 683
A75: value74 | B75: 307
A76: value75 | B76: 18
A77: value76 | B77: 803
A78: value77 | B78: 980
A79: value78 | B79: 83
A80: value79 | B80: 237
A81: value80 | B81: 965
A82: value81 | B82: 148
A83: value82 | B83: 66
A84: value83 | B84: 419
A85: value84 | B85: 10
A86: value85 | B86: 21
A87: value86 | B87: 8
A88: value87 | B88: 256
A89: value88 | B89: 177
A90: value89 | B90: 799
A91: value90 | B91: 663
A92: value91 | B92: 227
A93: value92 | B93: 543
A94: value93 | B94: 906
A95: value94 | B95: 960
A96: value95 | B96: 187
A97: value96 | B97: 85
A98: value97 | B98: 770
A99: value98 | B99: 64
A100: value99 | B100: 115
A101: value100 | B101: 398
A102: value101 | B102: 330
A103: value102 | B103: 56
A104: value103 | B104: 966
A105: value104 | B105: 711
A106: value105 | B106: 180
A107: value106 | B107: 689
A108: value107 | B108: 338
A109: value108 | B109: 557
A110: value109 | B110: 553
A111: value110 | B111: 909
A112: value111 | B112: 104
A113: value112 | B113: 951
A114: value113 | B114: 812
A115: value114 | B115: 507
A116: value115 | B116: 504
A117: value116 | B117: 516
A118: value117 | B118: 850
A119: value118 | B119: 756
A120: value119 | B120: 769
A121: value120 | B121: 544
A122: value121 | B122: 394
A123: value122 | B123: 114
A124: value123 | B124: 620
A125: value124 | B125: 268
A126: value125 | B126: 23
A127: value126 | B127: 245
A128: value127 | B128: 770
A129: value128 | B129: 285
A130: value129 | B130: 154
A131: value130 | B131: 619
A132: value131 | B132: 901
A133: value132 | B133: 689
A134: value133 | B134: 933
A135: value134 | B135: 39
A136: value135 | B136: 103
A137: value136 | B137: 571
A138: value137 | B138: 604
A139: value138 | B139: 227
A140: value139 | B140: 3
A141: value140 | B141: 981
A142: value141 | B142: 527
A143: value142 | B143: 114
A144: value143 | B144: 550
A145: value144 | B145: 675
A146: value145 | B146: 228
A147: value146 | B147: 335
A148: value147 | B148: 103
A149: value148 | B149: 822
A150: value149 | B150: 808
A151: value150 | B151: 269
A152: value151 | B152: 523
A153: value152 | B153: 8
A154: value153 | B154: 750
A155: value154 | B155: 498
A156: value155 | B156: 762
A157: value156 | B157: 395
A158: value157 | B158: 582
A159: value158 | B159: 856
A160: value159 | B160: 863
A161: value160 | B161: 170
A162: value161 | B162: 270
A163: value162 | B163: 240
A164: value163 | B164: 344
A165: value164 | B165: 406
A166: value165 | B166: 661
A167: value166 | B167: 811
A168: value167 | B168: 3
A169: value168 | B169: 587
A170: value169 | B170: 172
A171: value170 | B171: 150
A172: value171 | B172: 100
A173: value172 | B173: 95
A174: value173 | B174: 546
A175: value174 | B175: 929
A176: value175 | B176: 206
A177: value176 | B177: 565
A178: value177 | B178: 246
A179: value178 | B179: 204
A180: value179 | B180: 900
A181: value180 | B181: 801
A182: value181 | B182: 233
A183: value182 | B183: 419
A184: value183 | B184: 493
A185: value184 | B185: 519
A186: value185 | B186: 747
A187: value186 | B187: 247
A188: value187 | B188: 607
A189: value188 | B189: 158
A190: value189 | B190: 830
A191: value190 | B191: 436
A192: value191 | B192: 573
A193: value192 | B193: 375
A194: value193 | B194: 39
A195: value194 | B195: 729
A196: value195 | B196: 305
A197: value196 | B197: 146
A198: value197 | B198: 198
A199: value198 | B199: 463
A200: value199 | B200: 914
... 9801 more rows

Sheet Results
A5: Nr. | B5: Formula | C5: Start time | D5: Stop time | E5: 64 vs 32 bit | F5: Computer | G5: File Size | H5: Office version | I5: Number of processors | J5: Opt. Comp.? | K5: Calc. steps | L5: Software in background | M5: OS | N5: Sheet order | O5: Range | P5: Region settings | Q5: Duration (s)
A6: 1 | Q6: =(D6-C6)*24*60*60 -> 0.00
A7: 2 | Q7: =(D7-C7)*24*60*60 -> 0.00
A8: 3 | Q8: 0.00
A9: 4 | Q9: 0.00
A10: 5 | Q10: 0.00
A11: 6 | Q11: 0.00
A12: 7 | Q12: 0.00
A13: 8 | Q13: 0.00
A14: 9 | Q14: 0.00
A15: 10 | Q15: 0.00
A16: 11 | Q16: 0.00
A17: 12 | Q17: 0.00
A18: 13 | Q18: 0.00
A19: 14 | Q19: 0.00
A20: 15 | Q20: 0.00
A21: 16 | Q21: 0.00
A22: 17 | Q22: 0.00
A23: 18 | Q23: 0.00
